fUSD/lending_fUSD_20241024
["ID","MTS","AMOUNT","RATE_DAILY","PERIOD"]
[340743345,1729770663848,-894.75,0.00062465,120]
[340743346,1729770663857,-579.03,0.00062465,120]
[340743347,1729770663866,-500.0,0.00062465,120]
[340743348,1729770663876,-500.0,0.00062465,120]
[340743349,1729770663885,-500.0,0.00062465,120]
[340743350,1729770663894,-338.33521838,0.00062465,120]
[340743351,1729770663904,-500.0,0.00062465,120]
[340743352,1729770663913,-529.61633267,0.00062465,120]
[340743353,1729770663923,-500.0,0.00062465,120]
[340743354,1729770663932,-500.0,0.00062465,120]
[340743355,1729770663942,-579.71,0.00062465,120]
[340743356,1729770663951,-500.0,0.00062465,120]
[340743357,1729770663961,-1003.46,0.00062465,120]
[340743358,1729770663970,-500.0,0.00062465,120]
[340743359,1729770663980,-500.0,0.00062465,120]
[340743360,1729770663990,-978.86,0.00062465,120]
[340743361,1729770663999,-500.0,0.00062465,120]
[340743362,1729770664008,-500.0,0.00062465,120]
[340743363,1729770664018,-500.0,0.00062465,120]
[340743364,1729770664028,-500.0,0.00062465,120]
[340743365,1729770664037,-907.35,0.00062465,120]
[340743366,1729770664047,-500.0,0.00062465,120]
[340743367,1729770664056,-500.0,0.00062465,120]
[340743368,1729770664065,-500.0,0.00062465,120]
[340743369,1729770664075,-1698.95,0.00062465,120]
[340743370,1729770664084,-500.0,0.00062465,60]
[340743371,1729770664093,-500.0,0.00062465,120]
[340743372,1729770664103,-500.0,0.00062465,120]
[340743373,1729770664113,-150.0,0.00062465,120]
[340743374,1729770664122,-500.0,0.00062465,120]
[340743375,1729770664193,-500.0,0.00062465,120]
[340743376,1729770664203,-500.0,0.00062465,120]
[340743377,1729770664214,-1664.51,0.00062465,120]
[340743378,1729770664223,-1365.12,0.00062465,120]
[340743379,1729770664233,-558.83,0.00062465,120]
[340743380,1729770664243,-500.0,0.00062465,120]
[340743381,1729770664253,-500.0,0.00062465,120]
[340743382,1729770664262,-5079.61,0.00062465,120]
[340743383,1729770664272,-612.41,0.00062465,14]
[340743384,1729770664282,-500.0,0.00062465,120]
[340743385,1729770664293,-500.0,0.00062465,120]
[340743386,1729770664302,-572.95073807,0.00062465,120]
[340743387,1729770664311,-500.0,0.00062465,120]
[340743388,1729770664322,-560.39,0.00062465,120]
[340743389,1729770664334,-500.0,0.00062465,120]
[340743390,1729770664343,-500.0,0.00062465,120]
[340743391,1729770664351,-500.0,0.00062465,120]
[340743392,1729770664361,-679.18,0.00062465,120]
[340743393,1729770664371,-500.0,0.00062465,120]
[340743394,1729770664380,-859.58,0.00062465,120]
[340743395,1729770664390,-500.0,0.00062465,120]
[340743396,1729770664400,-500.0,0.00062465,120]
[340743397,1729770664410,-3575.92,0.00062465,120]
[340743398,1729770664419,-720.96,0.00062465,120]
[340743399,1729770664429,-500.0,0.00062465,120]
[340743400,1729770664439,-500.0,0.00062465,120]
[340743401,1729770664449,-902.51,0.00062465,120]
[340743402,1729770664458,-541.21,0.00062465,120]
[340743403,1729770664468,-500.0,0.00062465,120]
[340743404,1729770664477,-500.0,0.00062465,120]
[340743405,1729770664488,-591.09329276,0.00062465,120]
[340743406,1729770664501,-500.0,0.00062465,120]
[340743407,1729770664512,-898.97,0.00062465,120]
[340743408,1729770664522,-500.0,0.00062465,120]
[340743409,1729770664533,-500.0,0.00062465,120]
[340743410,1729770664543,-883.91,0.00062465,120]
[340743411,1729770664553,-622.25,0.00062465,120]
[340743412,1729770664563,-4880.54,0.00062465,120]
[340743413,1729770664573,-898.7,0.00062465,120]
[340743414,1729770664583,-1555.96,0.00062465,120]
[340743415,1729770664593,-500.0,0.00062465,120]
[340743416,1729770664603,-500.0,0.00062465,120]
[340743417,1729770664612,-1699.04,0.00062465,120]
[340743418,1729770664622,-500.0,0.00062465,120]
[340743419,1729770664632,-540.87322127,0.00062465,120]
[340743420,1729770664643,-764.73,0.00062465,120]
[340743421,1729770664654,-663.54,0.00062465,120]
[340743422,1729770664665,-898.61,0.00062465,120]
[340743423,1729770664674,-1452.21,0.00062465,120]
[340743424,1729770664683,-13644.44,0.00062465,120]
[340743425,1729770664694,-500.0,0.00062465,120]
[340743426,1729770664703,-500.0,0.00062465,120]
[340743427,1729770664713,-603.01622731,0.00062465,120]
[340743428,1729770664722,-500.0,0.00062465,120]
[340743429,1729770664732,-150.0,0.00062465,120]
[340743430,1729770664743,-539.88,0.00062465,120]
[340743431,1729770664753,-510.25,0.00062465,120]
[340743432,1729770664764,-500.0,0.00062465,120]
[340743433,1729770664773,-16013.8,0.00062465,5]
[340743434,1729770664783,-381.1,0.00062465,7]
[340743435,1729770664793,-500.0,0.00062465,120]
[340743436,1729770664804,-671.29,0.00062465,120]
[340743437,1729770664814,-500.0,0.00062465,120]
[340743438,1729770664824,-529.99,0.00062465,120]
[340743439,1729770664835,-500.0,0.00062465,120]
[340743440,1729770664846,-500.0,0.00062465,120]
[340743441,1729770664857,-725.63,0.00062465,120]
[340743442,1729770664867,-500.0,0.00062465,120]
[340743443,1729770664877,-1262.9,0.00062465,120]
[340743444,1729770664886,-5826.9,0.00062465,120]
[340743445,1729770664896,-1870.81,0.00062465,120]
[340743446,1729770664906,-500.0,0.00062465,120]
[340743447,1729770664915,-518.14,0.00062465,120]
[340743448,1729770664925,-521.29,0.00062465,120]
[340743449,1729770664936,-500.0,0.00062465,120]
[340743450,1729770664945,-953.95,0.00062465,7]
[340743451,1729770664955,-500.0,0.00062465,120]
[340743452,1729770664964,-500.0,0.00062465,120]
[340743453,1729770664975,-500.0,0.00062465,120]
[340743454,1729770664984,-500.0,0.00062465,120]
[340743455,1729770664994,-500.0,0.00062465,120]
[340743456,1729770665003,-500.0,0.00062465,120]
[340743457,1729770665013,-1473.4,0.00062465,120]
[340743458,1729770665022,-23014.84,0.00062465,120]
[340743459,1729770665032,-1061.17,0.00062465,120]
[340743460,1729770665041,-1889.61,0.00062465,120]
[340743461,1729770665051,-500.0,0.00062465,120]
[340743462,1729770665061,-500.0,0.00062465,120]
[340743463,1729770665071,-500.0,0.00062465,120]
[340743464,1729770665081,-548.86221232,0.00062465,120]
[340743465,1729770665092,-5499.42,0.00062465,120]
[340743466,1729770665102,-500.0,0.00062465,120]
[340743467,1729770665111,-515.53,0.00062465,120]
[340743468,1729770665121,-541.02,0.00062465,120]
[340743469,1729770665131,-500.0,0.00062465,120]
[340743470,1729770665140,-560.22,0.00062465,120]
[340743471,1729770665150,-508.61,0.00062465,120]
[340743472,1729770665159,-500.0,0.00062465,120]
[340743473,1729770665169,-1548.55,0.00062465,120]
[340743474,1729770665178,-500.0,0.00062465,120]
[340743475,1729770665188,-500.0,0.00062465,120]
[340743476,1729770665198,-500.0,0.00062465,120]
[340743477,1729770665208,-956.25,0.00062465,120]
[340743478,1729770665218,-1040.84,0.00062465,120]
[340743479,1729770665228,-168.21942425,0.00062465,120]
[340743480,1729770665239,-469.37084351,0.00062514,28]
[340743481,1729770665249,-1299.26,0.00062739,120]
[340743482,1729770665259,-500.0,0.00062739,120]
[340743483,1729770665268,-943.4,0.00062739,120]
[340743484,1729770665279,-500.0,0.00062739,120]
[340743485,1729770665292,-507.96,0.00062739,120]
[340743486,1729770665302,-500.0,0.00062739,120]
[340743487,1729770665313,-534.72,0.00062739,120]
[340743488,1729770665323,-500.0,0.00062739,120]
[340743489,1729770665335,-1738.65,0.00062739,120]
[340743490,1729770665344,-655.38,0.00062739,120]
[340743491,1729770665355,-500.0,0.00062739,120]
[340743492,1729770665365,-500.0,0.00062739,120]
[340743493,1729770665375,-500.0,0.00062739,120]
[340743494,1729770665386,-500.0,0.00062739,120]
[340743495,1729770665396,-1176.07,0.00062739,120]
[340743496,1729770665407,-500.0,0.00062739,120]
[340743497,1729770665417,-500.0,0.00062739,120]
[340743498,1729770665427,-878.78,0.00062739,120]
[340743499,1729770665438,-500.0,0.00062739,120]
[340743500,1729770665448,-1980.98,0.00062739,120]
[340743501,1729770665458,-894.75,0.00062739,120]
[340743502,1729770665468,-579.03,0.00062739,120]
[340743503,1729770665478,-500.0,0.00062739,120]
[340743504,1729770665491,-500.0,0.00062739,120]
[340743505,1729770665500,-500.0,0.00062739,120]
[340743506,1729770665512,-500.0,0.00062739,120]
[340743507,1729770665522,-500.0,0.00062739,120]
[340743508,1729770665532,-500.0,0.00062739,120]
[340743509,1729770665542,-579.71,0.00062739,120]
[340743510,1729770665552,-500.0,0.00062739,120]
[340743511,1729770665562,-1003.46,0.00062739,120]
[340743512,1729770665572,-500.0,0.00062739,120]
[340743513,1729770665581,-500.0,0.00062739,120]
[340743514,1729770665594,-978.86,0.00062739,120]
[340743515,1729770665604,-500.0,0.00062739,120]
[340743516,1729770665614,-500.0,0.00062739,120]
[340743517,1729770665625,-500.0,0.00062739,120]
[340743518,1729770665635,-500.0,0.00062739,120]
[340743519,1729770665646,-907.35,0.00062739,120]
[340743520,1729770665656,-327.2859855,0.00062739,120]
[340743521,1729770665666,-500.0,0.00062739,120]
[340743522,1729770665675,-500.0,0.00062739,120]
[340743523,1729770665686,-1698.95,0.00062739,120]
[340743524,1729770665696,-500.0,0.00062739,60]
[340743525,1729770665706,-499.45715931,0.00062739,120]
[340743526,1729770665716,-462.67467968,0.00062739,120]
[340743527,1729770665726,-150.0,0.00062739,120]
[340743528,1729770665736,-214.2,0.00062739,120]
[340743529,1729770665746,-344.73,0.00062739,120]
[340743530,1729770665757,-500.0,0.00062739,120]
[340743531,1729770665767,-1664.51,0.00062739,120]
[340743532,1729770665777,-1365.12,0.00062739,120]
[340743533,1729770665787,-558.83,0.00062739,120]
[340743534,1729770665798,-500.0,0.00062739,120]
[340743535,1729770665808,-500.0,0.00062739,120]
[340743536,1729770665818,-5079.61,0.00062739,120]
[340743537,1729770665828,-612.41,0.00062739,14]
[340743538,1729770665841,-500.0,0.00062739,120]
[340743539,1729770665851,-500.0,0.00062739,120]
[340743540,1729770665860,-500.0,0.00062739,120]
[340743541,1729770665870,-560.39,0.00062739,120]
[340743542,1729770665879,-500.0,0.00062739,120]
[340743543,1729770665890,-500.0,0.00062739,120]
[340743544,1729770665900,-500.0,0.00062739,120]
[340743545,1729770665910,-679.18,0.00062739,120]
[340743546,1729770665920,-500.0,0.00062739,120]
[340743547,1729770665930,-859.58,0.00062739,120]
[340743548,1729770665939,-500.0,0.00062739,120]
[340743549,1729770665949,-500.0,0.00062739,120]
[340743550,1729770665959,-3575.92,0.00062739,120]
[340743551,1729770665970,-720.96,0.00062739,120]
[340743552,1729770665980,-500.0,0.00062739,120]
[340743553,1729770665991,-500.0,0.00062739,120]
[340743554,1729770666001,-146.41775634,0.00062739,120]
[340743555,1729770666171,-756.09224366,0.00062739,120]
[340743556,1729770666181,-541.21,0.00062739,120]
[340743557,1729770666191,-500.0,0.00062739,120]
[340743558,1729770666201,-157.82887096,0.00062739,120]
[340743559,1729770666298,-342.17112904,0.00062739,120]
[340743560,1729770666309,-500.0,0.00062739,120]
[340743561,1729770666319,-898.97,0.00062739,120]
[340743562,1729770666330,-500.0,0.00062739,120]
[340743563,1729770666342,-500.0,0.00062739,120]
[340743564,1729770666352,-883.91,0.00062739,120]
[340743565,1729770666362,-622.25,0.00062739,120]
[340743566,1729770666372,-268.67251912,0.00062739,120]
[340743567,1729770666384,-771.26757877,0.00062739,120]
[340743568,1729770666403,-500.0,0.00061095,120]
[340743569,1729770666412,-1377.02,0.00061369,120]
[340743570,1729770666423,-3840.59990211,0.00062739,120]
[340743571,1729770666433,-898.7,0.00062739,120]
[340743572,1729770666443,-1555.96,0.00062739,120]
[340743573,1729770666452,-500.0,0.00062739,120]
[340743574,1729770666462,-500.0,0.00062739,120]
[340743575,1729770666472,-1699.04,0.00062739,120]
[340743576,1729770666482,-500.0,0.00062739,120]
[340743577,1729770666493,-764.73,0.00062739,120]
[340743578,1729770666502,-663.54,0.00062739,120]
[340743579,1729770666512,-898.61,0.00062739,120]
[340743580,1729770666522,-1452.21,0.00062739,120]
[340743581,1729770666531,-13644.44,0.00062739,120]
[340743582,1729770666541,-500.0,0.00062739,120]
[340743583,1729770666550,-500.0,0.00062739,120]
[340743584,1729770666560,-500.0,0.00062739,120]
[340743585,1729770666570,-150.0,0.00062739,120]
[340743586,1729770666580,-539.88,0.00062739,120]
[340743587,1729770666592,-510.25,0.00062739,120]
[340743588,1729770666602,-500.0,0.00062739,120]
[340743589,1729770666612,-15064.03919443,0.00062739,5]
[340743590,1729770666627,-307.4777073,0.00062739,5]
[340743591,1729770666775,-1469.87,0.00060273,120]
[340743592,1729770666786,-500.0,0.00060547,120]
[340743593,1729770666796,-1469.87,0.00060547,120]
[340743594,1729770666806,-500.0,0.00060821,120]
[340743595,1729770666816,-1469.87,0.00060821,120]
[340743596,1729770666826,-500.03646639,0.00061095,120]
[340743597,1729770666836,-1469.87,0.00061095,120]
[340743598,1729770666846,-500.0,0.00061369,120]
[340743599,1729770666856,-1469.87,0.00061369,120]
[340743600,1729770666867,-1377.02,0.00061643,120]
[340743601,1729770666876,-500.0,0.00061643,120]
[340743602,1729770666887,-1469.87,0.00061643,120]
[340743603,1729770666899,-1377.02,0.00061917,120]
[340743604,1729770666910,-500.0,0.00061917,120]
[340743605,1729770666920,-582.09,0.00062191,120]
[340743606,1729770666930,-1377.02,0.00062191,120]
[340743607,1729770666939,-500.0,0.00062191,120]
[340743608,1729770666950,-582.09,0.00062465,120]
[340743609,1729770666960,-1377.02,0.00062465,120]
[340743610,1729770666971,-500.0,0.00062465,120]
[340743611,1729770666981,-642.28309827,0.00062739,5]
[340743612,1729770666992,-381.1,0.00062739,7]
[340743613,1729770667003,-500.0,0.00062739,120]
[340743614,1729770667013,-671.29,0.00062739,120]
[340743615,1729770667025,-500.0,0.00062739,120]
[340743616,1729770667036,-529.99,0.00062739,120]
[340743617,1729770667048,-500.0,0.00062739,120]
[340743618,1729770667061,-500.0,0.00062739,120]
[340743619,1729770667072,-725.63,0.00062739,120]
[340743620,1729770667083,-500.0,0.00062739,120]
[340743621,1729770667095,-1262.9,0.00062739,120]
[340743622,1729770667104,-5826.9,0.00062739,120]
[340743623,1729770667115,-1870.81,0.00062739,120]
[340743624,1729770667126,-500.0,0.00062739,120]
[340743625,1729770667136,-518.14,0.00062739,120]
[340743626,1729770667146,-521.29,0.00062739,120]
[340743627,1729770667157,-185.77968546,0.00062739,120]
[340743628,1729770667177,-314.22031454,0.00062739,120]
[340743629,1729770667188,-427.04139071,0.00062739,7]
[340743630,1729770667203,-526.90860929,0.00062739,7]
[340743631,1729770667213,-201.41139071,0.00062739,120]
[340743632,1729770667229,-433.79859105,0.00062739,120]
[340743633,1729770667239,-641.41072203,0.00062739,120]
[340743634,1729770667251,-500.0,0.00062739,120]
[340743635,1729770667264,-568.68210206,0.00062739,120]
[340743636,1729770667275,-500.0,0.00062739,120]
[340743637,1729770667289,-500.0,0.00062739,120]
[340743638,1729770667301,-1473.4,0.00062739,120]
[340743639,1729770667311,-23014.84,0.00062739,120]
[340743640,1729770667324,-1061.17,0.00062739,120]
[340743641,1729770667334,-1889.61,0.00062739,120]
[340743642,1729770667344,-500.0,0.00062739,120]
[340743643,1729770667353,-500.0,0.00062739,120]
[340743644,1729770667363,-500.0,0.00062739,120]
[340743645,1729770667373,-5499.42,0.00062739,120]
[340743646,1729770667383,-500.0,0.00062739,120]
[340743647,1729770667393,-515.53,0.00062739,120]
[340743648,1729770667402,-541.02,0.00062739,120]
[340743649,1729770667412,-500.0,0.00062739,120]
[340743650,1729770667421,-560.22,0.00062739,120]
[340743651,1729770667430,-213.7508222,0.00062739,120]
[340743652,1729770667442,-294.8591778,0.00062739,120]
[340743653,1729770667451,-390.86413304,0.00062739,120]
[340743654,1729770667461,-1548.55,0.00062739,120]
[340743655,1729770667470,-500.0,0.00062739,120]
[340743656,1729770667482,-194.78248276,0.00062739,120]
[340743657,1729770667511,-500.0,0.0005145,2]
[340743658,1729770667523,-1442.75788024,0.00061917,120]
[340743659,1729770667539,-27.11211976,0.00061917,120]
[340743660,1729770667549,-305.21751724,0.00062739,120]
[340743661,1729770667560,-500.0,0.00062739,120]
[340743662,1729770667569,-956.25,0.00062739,120]
[340743663,1729770667581,-1040.84,0.00062739,120]
[340743664,1729770667593,-582.09,0.00062739,120]
[340743665,1729770667604,-1377.02,0.00062739,120]
[340743666,1729770667614,-639.28790793,0.00062739,120]
[340743667,1729770667623,-621.25,0.00062877,2]
[340743668,1729770667634,-12191.31572059,0.00062908,15]
[340743669,1729770667644,-35137.87030741,0.00063,120]
[340743670,1729770667654,-117017.06893155,0.00063,120]
[340743671,1729770667666,-852.05876134,0.00063,120]
[340743672,1729770667677,-2100.05512954,0.00063,120]
[340743673,1729770667689,-4128.97177876,0.00063,120]
[340743674,1729770667701,-377.63072068,0.00063,120]
[340743675,1729770667712,-649.02,0.00063,120]
[340743676,1729770667724,-2688.303576,0.00063,120]
[340743677,1729770667739,-16839.4006,0.00063,120]
[340743678,1729770667753,-752.75504041,0.00063,120]
[340743679,1729770668017,-1469.87,0.00062191,120]
[340743680,1729770668028,-1469.87,0.00062465,120]
[340743681,1729770668038,-1469.87,0.00062739,120]
[340743682,1729770668049,-18078.98274326,0.00063,120]
[340743683,1729770668061,-27881.97494983,0.00063,120]
[340743684,1729770668073,-2284.51473718,0.00063,120]
[340743685,1729770668086,-319.88,0.00063,120]
[340743686,1729770668097,-3145.92623713,0.00063,120]
[340743687,1729770668113,-33525.00000002,0.00063,120]
[340743688,1729770668224,-1100.01264028,0.00063,120]
[340743689,1729770668247,-122879.71604679,0.00063,120]
[340743690,1729770668261,-293925.21410723,0.00063,120]
[340743691,1729770668273,-6670.16159406,0.00063,30]
[340743692,1729770668288,-928.45431001,0.00063,120]
[340743693,1729770668298,-150.0,0.00063012,120]
[340743694,1729770668308,-1299.26,0.00063013,120]
[340743695,1729770668317,-500.0,0.00063013,120]
[340743696,1729770668329,-943.4,0.00063013,120]
[340743697,1729770668340,-500.0,0.00063013,120]
[340743698,1729770668349,-507.96,0.00063013,120]
[340743699,1729770668361,-500.0,0.00063013,120]
[340743700,1729770668372,-534.72,0.00063013,120]
[340743701,1729770668381,-500.0,0.00063013,120]
[340743702,1729770668391,-1738.65,0.00063013,120]
[340743703,1729770668400,-655.38,0.00063013,120]
[340743704,1729770668410,-500.0,0.00063013,120]
[340743705,1729770668420,-500.0,0.00063013,120]
[340743706,1729770668430,-500.0,0.00063013,120]
[340743707,1729770668439,-500.0,0.00063013,120]
[340743708,1729770668449,-1176.07,0.00063013,120]
[340743709,1729770668458,-500.0,0.00063013,120]
[340743710,1729770668467,-500.0,0.00063013,120]
[340743711,1729770668477,-878.78,0.00063013,120]
[340743712,1729770668487,-500.0,0.00063013,120]
[340743713,1729770668498,-1980.98,0.00063013,120]
[340743714,1729770668507,-894.75,0.00063013,120]
[340743715,1729770668517,-579.03,0.00063013,120]
[340743716,1729770668527,-500.0,0.00063013,120]
[340743717,1729770668537,-500.0,0.00063013,120]
[340743718,1729770668547,-500.0,0.00063013,120]
[340743719,1729770668558,-354.58622508,0.00063013,120]
[340743720,1729770668567,-500.0,0.00063013,120]
[340743721,1729770668578,-500.0,0.00063013,120]
[340743722,1729770668588,-579.71,0.00063013,120]
[340743723,1729770668598,-500.0,0.00063013,120]
[340743724,1729770668608,-1003.46,0.00063013,120]
[340743725,1729770668617,-500.0,0.00063013,120]
[340743726,1729770668627,-359.52,0.00063013,120]
[340743727,1729770668637,-978.86,0.00063013,120]
[340743728,1729770668646,-500.0,0.00063013,120]
[340743729,1729770668656,-500.0,0.00063013,120]
[340743730,1729770668667,-500.0,0.00063013,120]
[340743731,1729770668676,-500.0,0.00063013,120]
[340743732,1729770668687,-907.35,0.00063013,120]
[340743733,1729770668697,-500.0,0.00063013,120]
[340743734,1729770668706,-500.0,0.00063013,120]
[340743735,1729770668716,-1698.95,0.00063013,120]
[340743736,1729770668726,-500.0,0.00063013,60]
[340743737,1729770668735,-150.0,0.00063013,120]
[340743738,1729770668744,-500.0,0.00063013,120]
[340743739,1729770668753,-1664.51,0.00063013,120]
[340743740,1729770668763,-1365.12,0.00063013,120]
[340743741,1729770668774,-558.83,0.00063013,120]
[340743742,1729770668784,-500.0,0.00063013,120]
[340743743,1729770668793,-500.0,0.00063013,120]
[340743744,1729770668803,-5079.61,0.00063013,120]
[340743745,1729770668812,-612.41,0.00063013,14]
[340743746,1729770668822,-500.0,0.00063013,120]
[340743747,1729770668832,-461.87452774,0.00063013,120]
[340743748,1729770668842,-500.0,0.00063013,120]
[340743749,1729770668851,-560.39,0.00063013,120]
[340743750,1729770668861,-500.0,0.00063013,120]
[340743751,1729770668871,-500.0,0.00063013,120]
[340743752,1729770668885,-193.9813611,0.00063013,120]
[340743753,1729770668894,-679.18,0.00063013,120]
[340743754,1729770668903,-376.06439947,0.00063013,120]
[340743755,1729770669006,-859.58,0.00063013,120]
[340743756,1729770669017,-500.0,0.00063013,120]
[340743757,1729770669027,-500.0,0.00063013,120]
[340743758,1729770669040,-720.96,0.00063013,120]
[340743759,1729770669050,-500.0,0.00063013,120]
[340743760,1729770669062,-500.0,0.00063013,120]
[340743761,1729770669072,-902.51,0.00063013,120]
[340743762,1729770669081,-541.21,0.00063013,120]
[340743763,1729770669092,-500.0,0.00063013,120]
[340743764,1729770669102,-500.0,0.00063013,120]
[340743765,1729770669111,-500.0,0.00063013,120]
[340743766,1729770669121,-898.97,0.00063013,120]
[340743767,1729770669130,-500.0,0.00063013,120]
[340743768,1729770669140,-500.0,0.00063013,120]
[340743769,1729770669149,-883.91,0.00063013,120]
[340743770,1729770669158,-622.25,0.00063013,120]
[340743771,1729770669169,-4880.54,0.00063013,120]
[340743772,1729770669179,-898.7,0.00063013,120]
[340743773,1729770669189,-1555.96,0.00063013,120]
[340743774,1729770669198,-500.0,0.00063013,120]
[340743775,1729770669207,-548.30302598,0.00063013,120]
[340743776,1729770669216,-1699.04,0.00063013,120]
[340743777,1729770669226,-575.55266733,0.00063013,120]
[340743778,1729770669237,-764.73,0.00063013,120]
[340743779,1729770669248,-663.54,0.00063013,120]
[340743780,1729770669257,-898.61,0.00063013,120]
[340743781,1729770669267,-1452.21,0.00063013,120]
[340743782,1729770669276,-13644.44,0.00063013,120]
[340743783,1729770669290,-500.0,0.00063013,120]
[340743784,1729770669299,-500.0,0.00063013,120]
[340743785,1729770669309,-500.0,0.00063013,120]
[340743786,1729770669319,-200.47379662,0.00063013,120]
[340743787,1729770669330,-539.88,0.00063013,120]
[340743788,1729770669342,-510.25,0.00063013,120]
[340743789,1729770669351,-528.80207335,0.00063013,120]
[340743790,1729770669362,-16013.8,0.00063013,5]
[340743791,1729770669373,-381.1,0.00063013,7]
[340743792,1729770669383,-500.0,0.00063013,120]
[340743793,1729770669394,-500.0,0.00063013,120]
[340743794,1729770669405,-671.29,0.00063013,120]
[340743795,1729770669416,-529.99,0.00063013,120]
[340743796,1729770669427,-338.77118768,0.00063013,120]
[340743797,1729770669439,-500.0,0.00063013,120]
[340743798,1729770669448,-500.0,0.00063013,120]
[340743799,1729770669459,-725.63,0.00063013,120]
[340743800,1729770669469,-1262.9,0.00063013,120]
[340743801,1729770669481,-5826.9,0.00063013,120]
[340743802,1729770669491,-1870.81,0.00063013,120]
[340743803,1729770669501,-500.0,0.00063013,120]
[340743804,1729770669511,-518.14,0.00063013,120]
[340743805,1729770669521,-521.29,0.00063013,120]
[340743806,1729770669533,-500.0,0.00063013,120]
[340743807,1729770669543,-953.95,0.00063013,7]
[340743808,1729770669553,-500.0,0.00063013,120]
[340743809,1729770669563,-500.0,0.00063013,120]
[340743810,1729770669573,-500.0,0.00063013,120]
[340743811,1729770669584,-1473.4,0.00063013,120]
[340743812,1729770669596,-23014.84,0.00063013,120]
[340743813,1729770669605,-1061.17,0.00063013,120]
[340743814,1729770669615,-1889.61,0.00063013,120]
[340743815,1729770669625,-500.0,0.00063013,120]
[340743816,1729770669635,-612.6350584,0.00063013,120]
[340743817,1729770669646,-500.0,0.00063013,120]
[340743818,1729770669656,-5499.42,0.00063013,120]
[340743819,1729770669666,-500.0,0.00063013,120]
[340743820,1729770669675,-515.53,0.00063013,120]
[340743821,1729770669685,-541.02,0.00063013,120]
[340743822,1729770669695,-530.82461207,0.00063013,120]
[340743823,1729770669706,-560.22,0.00063013,120]
[340743824,1729770669715,-508.61,0.00063013,120]
[340743825,1729770669725,-1548.55,0.00063013,120]
[340743826,1729770669736,-500.0,0.00063013,120]
[340743827,1729770669748,-500.0,0.00063013,120]
[340743828,1729770669759,-500.0,0.00063013,120]
[340743829,1729770669769,-956.25,0.00063013,120]
[340743830,1729770669781,-1040.84,0.00063013,120]
[340743831,1729770669793,-582.09,0.00063013,120]
[340743832,1729770669804,-1377.02,0.00063013,120]
[340743833,1729770669817,-1469.87,0.00063013,120]
[340743834,1729770669828,-1299.26,0.00063287,120]
[340743835,1729770669840,-459.94099184,0.00063287,120]
[340743836,1729770669851,-943.4,0.00063287,120]
[340743837,1729770669862,-500.0,0.00063287,120]
[340743838,1729770669872,-507.96,0.00063287,120]
[340743839,1729770669882,-500.0,0.00063287,120]
[340743840,1729770669893,-534.72,0.00063287,120]
[340743841,1729770669902,-500.0,0.00063287,120]
[340743842,1729770669912,-1738.65,0.00063287,120]
[340743843,1729770669922,-655.38,0.00063287,120]
[340743844,1729770669931,-500.0,0.00063287,120]